lending/lending_fUSD_20240710
["ID","MTS","AMOUNT","RATE_DAILY","PERIOD"]
[331636220,1720596798342,-713.46,0.00013753,2]
[331636221,1720596798373,-1573.59,0.00013753,2]
[331636222,1720596798402,-726.21,0.00013753,2]
[331636223,1720596798430,-500.0,0.00013753,2]
[331636224,1720596798458,-500.0,0.00013753,2]
[331636225,1720596798696,-1582.94,0.00013753,2]
[331636226,1720596798726,-491.05769647,0.00013753,2]
[331636227,1720596798760,-659.91,0.00013753,2]
[331636228,1720596798791,-1494.16,0.00013753,2]
[331636229,1720596798820,-500.0,0.00013753,2]
[331636230,1720596798849,-500.0,0.00013753,2]
[331636231,1720596798878,-571.73,0.00013753,2]
[331636232,1720596798907,-929.35,0.00013753,2]
[331636233,1720596798936,-780.52,0.00013753,2]
[331636234,1720596798966,-707.35,0.00013753,2]
[331636235,1720596798995,-500.0,0.00013753,2]
[331636236,1720596799024,-151.0,0.00013753,2]
[331636237,1720596799052,-151.0,0.00013753,2]
[331636238,1720596799082,-151.0,0.00013753,2]
[331636239,1720596799111,-814.88,0.00013753,2]
[331636240,1720596799140,-742.99,0.00013753,2]
[331636241,1720596799170,-1197.66,0.00013753,2]
[331636242,1720596799198,-500.0,0.00013753,2]
[331636243,1720596799226,-603.24,0.00013753,2]
[331636244,1720596799254,-614.84,0.00013753,2]
[331636245,1720596799284,-956.65,0.00013753,2]
[331636246,1720596799312,-1518.0,0.00013753,2]
[331636247,1720596799340,-400.0,0.00013753,2]
[331636248,1720596799369,-591.4,0.00013753,2]
[331636249,1720596799398,-500.0,0.00013753,2]
[331636250,1720596799427,-151.0,0.00013753,2]
[331636251,1720596799454,-500.0,0.00013753,2]
[331636252,1720596799482,-151.0,0.00013753,2]
[331636253,1720596799511,-500.0,0.00013753,2]
[331636254,1720596799539,-151.0,0.00013753,2]
[331636255,1720596799568,-1783.94,0.00013753,2]
[331636256,1720596799598,-910.81,0.00013753,2]
[331636257,1720596799629,-500.0,0.00013753,2]
[331636258,1720596799658,-500.0,0.00013753,2]
[331636259,1720596799687,-500.0,0.00013753,2]
[331636260,1720596799716,-500.0,0.00013753,2]
[331636261,1720596799744,-1238.01,0.00013753,2]
[331636262,1720596799773,-595.18,0.00013753,2]
[331636263,1720596799801,-1336.02,0.00013753,2]
[331636264,1720596799829,-2619.92,0.00013753,2]
[331636265,1720596799857,-655.39,0.00013753,2]
[331636266,1720596799884,-500.0,0.00013753,2]
[331636267,1720596799915,-500.0,0.00013753,2]
[331636268,1720596799946,-500.0,0.00013753,2]
[331636269,1720596799975,-500.0,0.00013753,2]
[331636270,1720596800004,-500.0,0.00013753,2]
[331636271,1720596800035,-732.97,0.00013753,2]
[331636272,1720596800064,-500.0,0.00013753,2]
[331636273,1720596800093,-2561.09,0.00013753,2]
[331636274,1720596800123,-670.39,0.00013753,2]
[331636275,1720596800157,-793.82,0.00013753,2]
[331636276,1720596800188,-997.74,0.00013753,2]
[331636277,1720596800219,-500.0,0.00013753,2]
[331636278,1720596800249,-500.0,0.00013753,2]
[331636279,1720596800284,-500.0,0.00013753,2]
[331636280,1720596800314,-500.0,0.00013753,2]
[331636281,1720596800344,-500.0,0.00013753,2]
[331636282,1720596800373,-540.69,0.00013753,2]
[331636283,1720596800403,-500.0,0.00013753,2]
[331636284,1720596800434,-618.37,0.00013753,2]
[331636285,1720596800463,-846.33,0.00013753,2]
[331636286,1720596800492,-500.0,0.00013753,2]
[331636287,1720596800524,-593.58,0.00013753,2]
[331636288,1720596800554,-539.73,0.00013753,2]
[331636289,1720596800584,-500.0,0.00013753,2]
[331636290,1720596800613,-579.25,0.00013753,2]
[331636291,1720596800644,-1043.67,0.00013753,2]
[331636292,1720596800673,-989.23,0.00013753,2]
[331636293,1720596800702,-500.0,0.00013753,2]
[331636294,1720596800947,-2382.39,0.00013753,2]
[331636295,1720596800980,-1395.78,0.00013753,2]
[331636296,1720596801013,-151.0,0.00013753,2]
[331636297,1720596801044,-151.0,0.00013753,2]
[331636298,1720596801079,-1200.87,0.00013753,2]
[331636299,1720596801109,-151.0,0.00013753,2]
[331636300,1720596801144,-744.96,0.00013753,2]
[331636301,1720596801175,-151.0,0.00013753,2]
[331636302,1720596801206,-500.0,0.00013753,2]
[331636303,1720596801236,-158.46,0.00013753,2]
[331636304,1720596801266,-500.0,0.00013753,2]
[331636305,1720596801297,-500.0,0.00013753,2]
[331636306,1720596801327,-1803.17,0.00013753,2]
[331636307,1720596801359,-500.0,0.00013753,2]
[331636308,1720596801390,-151.0,0.00013753,2]
[331636309,1720596801420,-201.640351,0.00013753,2]
[331636310,1720596801449,-500.0,0.00013753,2]
[331636311,1720596801480,-551.53,0.00013753,2]
[331636312,1720596801510,-198.413782,0.00013753,2]
[331636313,1720596801539,-852.22,0.00013753,2]
[331636314,1720596801568,-201.640351,0.00013753,2]
[331636315,1720596801598,-201.640351,0.00013753,2]
[331636316,1720596801627,-500.0,0.00013753,2]
[331636317,1720596801658,-10425.31,0.00013753,2]
[331636318,1720596801687,-201.640351,0.00013753,2]
[331636319,1720596801715,-201.640351,0.00013753,2]
[331636320,1720596801746,-201.640351,0.00013753,2]
[331636321,1720596801776,-335.29843547,0.00013753,2]
[331636322,1720596801806,-1269.24,0.00013753,2]
[331636323,1720596801836,-500.0,0.00013753,2]
[331636324,1720596801866,-500.0,0.00013753,2]
[331636325,1720596801897,-500.0,0.00013753,2]
[331636326,1720596801927,-1030.86,0.00013753,2]
[331636327,1720596801956,-500.0,0.00013753,2]
[331636328,1720596801987,-500.0,0.00013753,2]
[331636329,1720596802019,-500.0,0.00013753,2]
[331636330,1720596802048,-635.68115545,0.00013753,2]
[331636331,1720596802078,-500.0,0.00013753,2]
[331636332,1720596802108,-547.45,0.00013753,2]
[331636333,1720596802138,-1904.36,0.00013753,2]
[331636334,1720596802168,-500.0,0.00013753,2]
[331636335,1720596802198,-500.0,0.00013753,2]
[331636336,1720596802227,-500.0,0.00013753,2]
[331636337,1720596802256,-500.0,0.00013753,2]
[331636338,1720596802290,-798.22,0.00013753,2]
[331636339,1720596802319,-1190.87,0.00013753,2]
[331636340,1720596802347,-500.0,0.00013753,2]
[331636341,1720596802376,-500.0,0.00013753,2]
[331636342,1720596802404,-500.0,0.00013753,2]
[331636343,1720596802432,-500.0,0.00013753,2]
[331636344,1720596802462,-500.0,0.00013753,2]
[331636345,1720596802491,-500.0,0.00013753,2]
[331636346,1720596802519,-1670.14,0.00013753,2]
[331636347,1720596802547,-500.0,0.00013753,2]
[331636348,1720596802577,-617.17,0.00013753,2]
[331636349,1720596802607,-500.0,0.00013753,2]
[331636350,1720596802636,-500.0,0.00013753,2]
[331636351,1720596802666,-681.45,0.00013753,2]
[331636352,1720596802695,-936.36,0.00013753,2]
[331636353,1720596802724,-861.68,0.00013753,2]
[331636354,1720596802753,-1198.99,0.00013753,2]
[331636355,1720596802782,-550.95,0.00013753,2]
[331636356,1720596802810,-500.0,0.00013753,2]
[331636357,1720596802839,-500.0,0.00013753,2]
[331636358,1720596802868,-913.21,0.00013753,2]
[331636359,1720596802896,-1492.62,0.00013753,2]
[331636360,1720596802925,-538.63,0.00013753,2]
[331636361,1720596802953,-737.67,0.00013753,2]
[331636362,1720596802982,-500.0,0.00013753,2]
[331636363,1720596803010,-500.0,0.00013753,2]
[331636364,1720596803271,-1302.39,0.00013753,2]
[331636365,1720596803322,-821.74,0.00013753,2]
[331636366,1720596803371,-1090.51,0.00013753,2]
[331636367,1720596803420,-500.0,0.00013753,2]
[331636368,1720596803468,-500.0,0.00013753,2]
[331636369,1720596803516,-1121.67,0.00013753,2]
[331636370,1720596803564,-500.0,0.00013753,2]
[331636371,1720596803620,-500.0,0.00013753,2]
[331636372,1720596803670,-887.04,0.00013753,2]
[331636373,1720596803717,-1408.24,0.00013753,2]
[331636374,1720596803766,-721.95,0.00013753,2]
[331636375,1720596803815,-505.86,0.00013753,2]
[331636376,1720596803864,-599.35,0.00013753,2]
[331636377,1720596803914,-737.18,0.00013753,2]
[331636378,1720596803967,-757.35,0.00013753,2]
[331636379,1720596804021,-500.0,0.00013753,2]
[331636380,1720596804073,-1545.29,0.00013753,2]
[331636381,1720596804121,-500.0,0.00013753,2]
[331636382,1720596804172,-920.62,0.00013753,2]
[331636383,1720596804222,-572.78,0.00013753,2]
[331636384,1720596804269,-1083.87,0.00013753,2]
[331636385,1720596804317,-500.0,0.00013753,2]
[331636386,1720596804365,-500.0,0.00013753,2]
[331636387,1720596804411,-1152.47,0.00013753,2]
[331636388,1720596804466,-1032.18,0.00013753,2]
[331636389,1720596804516,-1133.69,0.00013753,2]
[331636390,1720596804564,-500.0,0.00013753,2]
[331636391,1720596804616,-594.7,0.00013753,2]
[331636392,1720596804666,-500.0,0.00013753,2]
[331636393,1720596804715,-500.0,0.00013753,2]
[331636394,1720596804767,-863.16,0.00013753,2]
[331636395,1720596804814,-682.56,0.00013753,2]
[331636396,1720596804861,-1296.57,0.00013753,2]
[331636397,1720596804912,-1134.56,0.00013753,2]
[331636398,1720596804966,-506.65,0.00013753,2]
[331636399,1720596805018,-500.0,0.00013753,2]
[331636400,1720596805068,-500.0,0.00013753,2]
[331636401,1720596805118,-8796.8,0.00013753,2]
[331636402,1720596805168,-500.0,0.00013753,2]
[331636403,1720596805221,-500.0,0.00013753,2]
[331636404,1720596805271,-1385.5,0.00013753,2]
[331636405,1720596805320,-890.09,0.00013753,2]
[331636406,1720596805369,-500.0,0.00013753,2]
[331636407,1720596805417,-500.0,0.00013753,2]
[331636408,1720596805466,-896.25,0.00013753,2]
[331636409,1720596805516,-1020.62,0.00013753,2]
[331636410,1720596805564,-500.0,0.00013753,2]
[331636411,1720596805615,-500.0,0.00013753,2]
[331636412,1720596805665,-500.0,0.00013753,2]
[331636413,1720596805714,-500.0,0.00013753,2]
[331636414,1720596805765,-500.0,0.00013753,2]
[331636415,1720596805814,-842.87,0.00013753,2]
[331636416,1720596805883,-1215.21,0.00013753,2]
[331636417,1720596805940,-500.0,0.00013753,2]
[331636418,1720596805997,-500.0,0.00013753,2]
[331636419,1720596806053,-500.0,0.00013753,2]
[331636420,1720596806111,-768.39,0.00013753,2]
[331636421,1720596806163,-500.0,0.00013753,2]
[331636422,1720596806214,-1824.18,0.00013753,2]
[331636423,1720596806269,-500.0,0.00013753,2]
[331636424,1720596806318,-975.24,0.00013753,2]
[331636425,1720596806369,-1006.61,0.00013753,2]
[331636426,1720596806419,-500.0,0.00013753,2]
[331636427,1720596806467,-500.0,0.00013753,2]
[331636428,1720596806520,-565.75,0.00013753,2]
[331636429,1720596806569,-500.0,0.00013753,2]
[331636430,1720596806620,-500.0,0.00013753,2]
[331636431,1720596806669,-500.0,0.00013753,2]
[331636432,1720596806722,-560.11,0.00013753,2]
[331636433,1720596807127,-990.14,0.00013753,2]
[331636434,1720596807190,-500.0,0.00013753,2]
[331636435,1720596807239,-500.0,0.00013753,2]
[331636436,1720596807286,-500.0,0.00013753,2]
[331636437,1720596807332,-500.0,0.00013753,2]
[331636438,1720596807380,-500.0,0.00013753,2]
[331636439,1720596807428,-658.7,0.00013753,2]
[331636440,1720596807476,-806.59,0.00013753,2]
[331636441,1720596807523,-500.0,0.00013753,2]
[331636442,1720596807567,-500.0,0.00013753,2]
[331636443,1720596807616,-1360.16,0.00013753,2]
[331636444,1720596807663,-500.0,0.00013753,2]
[331636445,1720596807708,-500.0,0.00013753,2]
[331636446,1720596807755,-500.0,0.00013753,2]
[331636447,1720596807809,-500.0,0.00013753,2]
[331636448,1720596807856,-1700.38,0.00013753,2]
[331636449,1720596807903,-500.0,0.00013753,2]
[331636450,1720596807954,-2183.18,0.00013753,2]
[331636451,1720596808002,-500.0,0.00013753,2]
[331636452,1720596808052,-573.06250023,0.00013753,2]
[331636453,1720596808102,-629.53,0.00013753,2]
[331636454,1720596808148,-500.0,0.00013753,2]
[331636455,1720596808199,-1692.28,0.00013753,2]
[331636456,1720596808250,-500.0,0.00013753,2]
[331636457,1720596808299,-631.72,0.00013753,2]
[331636458,1720596808348,-500.0,0.00013753,2]
[331636459,1720596808398,-500.0,0.00013753,2]
[331636460,1720596808445,-500.0,0.00013753,2]
[331636461,1720596808493,-664.66,0.00013753,2]
[331636462,1720596808544,-500.0,0.00013753,2]
[331636463,1720596808595,-1333.89,0.00013753,2]
[331636464,1720596808646,-500.0,0.00013753,2]
[331636465,1720596808697,-749.64,0.00013753,2]
[331636466,1720596808744,-710.88,0.00013753,2]
[331636467,1720596808795,-500.0,0.00013753,2]
[331636468,1720596808848,-500.0,0.00013753,2]
[331636469,1720596808898,-1220.75,0.00013753,2]
[331636470,1720596808949,-500.0,0.00013753,2]
[331636471,1720596809003,-1539.76,0.00013753,2]
[331636472,1720596809053,-500.0,0.00013753,2]
[331636473,1720596809102,-500.0,0.00013753,2]
[331636474,1720596809153,-670.1,0.00013753,2]
[331636475,1720596809202,-500.0,0.00013753,2]
[331636476,1720596809247,-500.0,0.00013753,2]
[331636477,1720596809297,-500.0,0.00013753,2]
[331636478,1720596809346,-1617.29,0.00013753,2]
[331636479,1720596809393,-500.0,0.00013753,2]
[331636480,1720596809440,-500.0,0.00013753,2]
[331636481,1720596809487,-500.0,0.00013753,2]
[331636482,1720596809532,-462.24258694,0.00013759,2]
[331636483,1720596809588,-200.51429049,0.00013768,2]
[331636484,1720596809637,-600.0,0.0001377,2]
[331636485,1720596809686,-500.0,0.0001377,2]
[331636486,1720596810569,2251.54,0.00013753,2]
[331636487,1720596811143,500.0,0.00013698,2]
[331636488,1720596811406,500.0,0.00013753,2]
[331636489,1720596811988,300.0,0.00013697,2]
[331636490,1720596813363,752.47516943,6.762e-05,7]
[331636491,1720596813703,1173.51,0.00013737,2]
[331636492,1720596813932,150.0,0.00013752,2]
[331636493,1720596814012,500.0,0.00013698,2]
[331636494,1720596814107,500.0,0.00013753,2]
[331636495,1720596815351,500.0,0.00013698,2]
[331636496,1720596815405,500.0,0.00013753,2]
[331636497,1720596815464,500.0,0.00013698,2]
[331636498,1720596815525,194.92136016,0.000135,2]
[331636499,1720596815665,491.73141892,0.00013753,2]
[331636500,1720596815819,500.0,0.00013698,2]
[331636501,1720596815885,500.0,0.00013753,2]
[331636502,1720596815946,525.11065624,0.00013698,2]
[331636503,1720596816287,1760.57,0.00013698,2]
[331636504,1720596816379,1760.57,0.00013753,2]
[331636505,1720596816440,824.85,0.00013698,2]
[331636506,1720596816698,824.85,0.00013753,2]
[331636507,1720596817044,1124.41355458,0.00013478,2]
[331636508,1720596817342,10606.09,0.0001377,2]
[331636509,1720596817651,1000.0,0.00012811,2]
[331636510,1720596817907,2297.41,0.00013698,2]
[331636511,1720596818014,2297.41,0.00013753,2]
[331636512,1720596818726,627.56,0.00013698,2]
[331636513,1720596818843,627.56,0.00013753,2]
[331636514,1720596818917,287.1577532,0.00013698,2]
[331636515,1720596820064,1754.81,0.00013698,2]
[331636516,1720596820147,1754.81,0.00013753,2]
[331636517,1720596820330,500.0,0.00013698,2]
[331636518,1720596820420,500.0,0.00013698,2]
[331636519,1720596820494,955.57,0.00013698,2]
[331636520,1720596821092,500.0,0.00013753,2]
[331636521,1720596821161,955.57,0.00013753,2]
[331636522,1720596821257,500.0,0.00013753,2]
[331636523,1720596822340,568.26,0.00013698,2]
[331636524,1720596822442,568.26,0.00013753,2]
[331636525,1720596822654,1179.94,0.00013698,2]
[331636526,1720596822833,1179.94,0.00013753,2]
[331636527,1720596823214,731.37,0.00013698,2]
[331636528,1720596823319,500.0,0.00013698,2]
[331636529,1720596823408,661.38,0.00013698,2]
[331636530,1720596823483,731.37,0.00013753,2]
[331636531,1720596823546,500.0,0.00013753,2]
[331636532,1720596823811,661.38,0.00013753,2]
[331636533,1720596824200,895.02,0.00013698,2]
[331636534,1720596824308,895.02,0.00013753,2]
[331636535,1720596824841,2721.88,0.00013698,2]
[331636536,1720596824985,2721.88,0.00013753,2]
[331636537,1720596825337,500.0,0.00013698,2]
[331636538,1720596825614,500.0,0.00013753,2]
[331636539,1720596826855,462.24258694,0.00013736,2]
[331636540,1720596828207,500.0,0.00013698,2]
[331636541,1720596828330,500.0,0.00013698,2]
[331636542,1720596828425,271.7402569,0.00013753,2]
[331636543,1720596828616,677.18,0.00013698,2]
[331636544,1720596828701,677.18,0.00013753,2]
[331636545,1720596828801,500.0,0.00013698,2]
[331636546,1720596828884,500.0,0.00013753,2]
[331636547,1720596828958,796.34,0.00013698,2]
[331636548,1720596829053,796.34,0.00013753,2]
[331636549,1720596829136,500.0,0.00013698,2]
[331636550,1720596830653,2512.04,0.00013698,2]
[331636551,1720596830791,2512.04,0.00013753,2]
[331636552,1720596831047,617.05,0.00013698,2]
[331636553,1720596832013,500.0,0.00013698,2]
[331636554,1720596832113,500.0,0.00013753,2]
[331636555,1720596832178,500.0,0.00013698,2]
[331636556,1720596832368,1082.65793903,0.00013478,2]
[331636557,1720596832701,500.0,0.00013698,2]
[331636558,1720596832827,500.0,0.00013698,2]
[331636559,1720596832907,500.0,0.00013753,2]
[331636560,1720596833127,335.91504645,0.00013753,2]
[331636561,1720596833237,500.0,0.00013698,2]
[331636562,1720596833404,500.0,0.00013753,2]
[331636563,1720596834300,500.0,0.00013698,2]
[331636564,1720596834378,500.0,0.00013753,2]
[331636565,1720596835394,500.0,0.00013698,2]
[331636566,1720596835461,500.0,0.00013753,2]
[331636567,1720596836061,500.0,0.00013698,2]
[331636568,1720596836136,500.0,0.00013753,2]
[331636569,1720596836732,500.0,0.00013698,2]
[331636570,1720596836957,500.0,0.00013753,2]
[331636571,1720596837124,704.35,0.00013698,2]
[331636572,1720596837440,704.35,0.00013753,2]
[331636573,1720596837869,553.05,0.00013698,2]
[331636574,1720596838071,500.0,0.00013698,2]
[331636575,1720596838217,553.05,0.00013753,2]
[331636576,1720596838292,500.0,0.00013753,2]
[331636577,1720596838504,1788.37,0.00013698,2]
[331636578,1720596838581,823.64175324,0.00013698,2]
[331636579,1720596845373,3539.2186,0.000118,2]
[331636580,1720596845407,48410.45503423,0.000118,2]
[331636581,1720596956429,199.41362049,0.000118,2]
[331636582,1720596963870,167.51576851,0.000118,2]
[331636583,1720596974666,303.65289348,0.000118,2]
[331636584,1720596978099,918.96268329,0.000118,2]
[331636585,1720597029959,555.32,0.00010959,2]
[331636586,1720597029990,30.31,0.00010959,2]
[331636587,1720597038065,80012.37893605,0.00011199,2]
[331636588,1720597054161,20337.16110873,0.00010959,2]
[331636589,1720597055729,300.51199197,0.00010959,2]
[331636590,1720597056505,656.58865772,0.00010959,2]
[331636591,1720597058103,6206.90549939,0.00010959,2]
[331636592,1720597064831,229.86416069,0.00010959,2]
[331636593,1720597065605,359708.34620801,0.00010959,2]
[331636594,1720597084328,962.01005615,0.00010959,2]
[331636595,1720597140786,17506.57451214,0.00010959,2]
[331636596,1720597188515,1300.0,0.00011199,2]
[331636597,1720597188540,17546.34189242,0.00011199,2]
[331636598,1720597233369,8049.36677896,0.00011199,2]
[331636599,1720597235522,330.14,0.0001069,2]
[331636600,1720597242873,9245.81170707,0.00011199,2]
[331636601,1720597244410,6243.21083473,0.00011199,2]
[331636602,1720597252605,370.12038394,0.00011199,2]
[331636603,1720597260342,166.05,0.00010262,2]
[331636604,1720597271625,19639.65651295,0.00011199,2]
[331636605,1720597286798,5512.37315173,0.00011199,2]
[331636606,1720597331300,3834.63049294,0.00027,120]
[331636607,1720597387436,400.0,0.00011199,2]
[331636613,1720597638701,718.22971183,0.00011199,2]
[331636614,1720597654976,755.7604255,0.00011199,2]
[331636615,1720597708521,7924.14851558,6.762e-05,7]
[331636616,1720597708563,41061.0914784,6.762e-05,7]
[331636617,1720597740903,159.1434954,0.00011199,2]
[331636618,1720597777297,19087.19578789,0.00011199,2]
[331636619,1720597778828,636.82622539,0.00011199,2]
[331636620,1720597780447,192.01119304,0.00011199,2]
[331636629,1720597833239,-250.0,0.0001187,2]
[331636631,1720597833249,-300.81,0.00011904,2]
[331636633,1720597833260,-187.08415138,0.00012173,2]
[331636635,1720597833271,-227.29136124,0.00012273,2]
[331636637,1720597833283,-210.18261467,0.00012302,2]
[331636639,1720597833293,-300.0,0.00012303,2]
[331636641,1720597833303,-3755.56,0.00012303,2]
[331636642,1720597833313,-50000.0,0.00012304,2]
[331636643,1720597833323,-200.0,0.00012382,2]
[331636644,1720597833332,-451.31,0.00012385,2]
[331636645,1720597833342,-150.0,0.00012403,2]
[331636646,1720597833351,-250.0,0.00012422,2]
[331636647,1720597833361,-150.0,0.00012423,2]
[331636648,1720597833370,-23900.0,0.00012424,2]
[331636649,1720597833380,-299.99,0.00012424,2]
[331636650,1720597833391,-200.0,0.00012432,2]
[331636651,1720597833401,-163.6,0.00012442,2]
[331636652,1720597833411,-499.99,0.00012442,2]
[331636653,1720597833420,-150.0,0.00012493,2]
[331636654,1720597833429,-1798.48,0.00012493,2]
[331636655,1720597833438,-3030.17,0.00012493,2]
[331636656,1720597833447,-8813.14,0.00012518,2]
[331636657,1720597833457,-26443.5,0.00012546,2]
[331636658,1720597833466,-163.6,0.00012571,2]
[331636659,1720597833475,-200.0,0.00012636,2]
[331636660,1720597833483,-163.6,0.00012701,2]
[331636661,1720597833493,-1876.541,0.00012725,2]
[331636662,1720597833502,-258.992,0.00012725,2]
[331636663,1720597833512,-150.99,0.00012772,2]
[331636664,1720597833521,-16899.78,0.00012826,2]
[331636665,1720597833531,-163.6,0.00012831,2]
[331636666,1720597833540,-330.14,0.00012954,2]
[331636667,1720597833549,-163.6,0.0001296,2]
[331636668,1720597833558,-329.9,0.00013078,2]
[331636669,1720597833568,-163.6,0.0001309,2]
[331636670,1720597833578,-5000.0,0.00013128,2]
[331636671,1720597833587,-155.30130863,0.00013128,2]
[331636672,1720597833596,-155.0,0.00013128,2]
[331636673,1720597833605,-261.3858728,0.00013283,2]
[331636674,1720597833614,-31199.0,0.00013284,2]
[331636675,1720597833623,-1000.0,0.00013415,2]
[331636676,1720597833632,-2500.0,0.00013415,2]
[331636677,1720597833642,-183.930618,0.00013477,2]
[331636678,1720597833652,-202.813332,0.00013477,2]
[331636679,1720597833661,-236.166992,0.00013477,2]
[331636680,1720597833671,-195.145279,0.00013477,2]
[331636681,1720597833680,-214.798021,0.00013477,2]
[331636682,1720597833690,-170.29919,0.00013477,2]
[331636683,1720597833699,-125535.08537749,0.00013515,2]
[331636684,1720597833711,-1264.92213148,0.00013515,2]
[331636685,1720597833723,-803.69185319,0.00013515,2]
[331636686,1720597833778,-602.82277597,0.00013515,2]
[331636687,1720597833789,-1541.9914002,0.00013515,2]
[331636688,1720597836005,150.0,0.00027,120]
[331636690,1720597838147,-10078.58322603,0.00013515,2]
[331636691,1720597838159,-324.00167248,0.00013515,2]
[331636692,1720597838207,-53583.22166316,0.00013515,2]
[331636693,1720597838217,-253.0,0.00013516,2]
[331636694,1720597838228,-670.6119,0.00013553,2]
[331636695,1720597838238,-334.11800582,0.0001358,2]
[331636696,1720597838248,-166.81,0.00013589,3]
[331636697,1720597838259,-305.55234047,0.0001359,2]
[331636698,1720597838269,-151.477,0.00013616,2]
[331636699,1720597838279,-150.166,0.00013616,2]
[331636700,1720597838290,-1670.9317,0.00013622,2]
[331636701,1720597838300,-553.79461,0.0001363,2]
[331636702,1720597838310,-553.79461,0.0001363,2]
[331636703,1720597838320,-202.813332,0.00013646,2]
[331636704,1720597838330,-236.166992,0.00013646,2]
[331636705,1720597838340,-195.145279,0.00013646,2]
[331636706,1720597838350,-1000.0,0.00013653,2]
[331636707,1720597838360,-245000.0,0.00013653,2]
[331636708,1720597838371,-1376.9389259,0.0001369,2]
[331636709,1720597838382,-549.46977488,0.0001369,2]
[331636710,1720597838393,-39489.1473,0.0001369,2]
[331636711,1720597838403,-33158.91932289,0.0001369,2]
[331636712,1720597838416,-66841.08067711,0.0001369,2]
[331636713,1720597838427,-500.0,0.0001369,2]
[331636714,1720597838437,-594.0,0.00013698,2]
[331636715,1720597838447,-654.89,0.00013698,2]
[331636716,1720597838457,-500.0,0.00013698,2]
[331636717,1720597838467,-500.0,0.00013698,2]
[331636718,1720597838477,-1054.21,0.00013698,2]
[331636719,1720597838488,-642.06,0.00013698,2]
[331636720,1720597838498,-500.0,0.00013698,2]
[331636721,1720597838507,-500.0,0.00013698,2]
[331636722,1720597838519,-500.0,0.00013698,2]
[331636723,1720597838529,-500.0,0.00013698,2]
[331636724,1720597838538,-1278.1,0.00013698,2]
[331636725,1720597838548,-592.41,0.00013698,2]
[331636726,1720597838558,-680.31,0.00013698,2]
[331636727,1720597838568,-500.0,0.00013698,2]
[331636728,1720597838578,-809.46,0.00013698,2]
[331636729,1720597838588,-500.0,0.00013698,2]
[331636730,1720597838598,-500.0,0.00013698,2]
[331636731,1720597838608,-844.89,0.00013698,2]
[331636732,1720597838618,-168.95757663,0.00013698,2]
[331636733,1720597838628,-733.62,0.00013698,2]
[331636734,1720597838638,-461.94037867,0.00013698,2]
[331636735,1720597838650,-542.88773051,0.00013698,2]
[331636736,1720597838660,-1035.45,0.00013698,2]
[331636738,1720597838669,-613.66950828,0.00013698,2]
[331636740,1720597838679,-791.19,0.00013698,2]
[331636741,1720597838689,-500.0,0.00013698,2]